[Event "17th Memorial Lezcano Montalvo 2025"]
[Site "Gran Canaria"]
[Date "2025.04.17"]
[Round "6.39"]
[White "Morell Rojas, Samuel"]
[Black "Ramos Santana, Marcelino"]
[Result "0-1"]
[Annotator "NA RC"]
[ECO "B22"]
[WhiteElo "1652"]
[BlackElo "1903"]
[PlyCount "118"]
[EventDate "2025.04.13"]
[EventType "swiss"]
[EventCountry "ESP"]
[SourceTitle "playchess.com"]
[Source "ChessBase"]
[SourceQuality "1"]
[TimeControl "5400+30"]

1. e4 {[%emt 0:00:01]} c5 {[%emt 0:00:44]} 2. c3 {[%emt 0:00:33]} Nf6 {[%emt 0:00:10]} 3. e5 {[%emt 0:00:14]} Nd5 {[%emt 0:00:08]} 4. d4 {[%emt 0:00:39]} cxd4 {[%emt 0:00:13]} 5. cxd4 {[%emt 0:00:09]} d6 {[%emt 0:00:26]} 6. Nf3 {[%emt 0:00:31]} Nc6 {[%emt 0:00:16]} 7. Bc4 {[%emt 0:00:10]} dxe5 {[%emt 0:00:17]} 8. dxe5 {[%emt 0:00:27]} Nb6 {[%emt 0:00:12]} 9. Qxd8+ {[%emt 0:00:59]} Nxd8 {[%emt 0:00:05]} 10. Bd3 {[%emt 0:00:29]} Nc6 {[%emt 0:02:44]} 11. O-O {[%emt 0:00:35]} g6 {[%emt 0:00:56]} 12. Nc3 {[%emt 0:00:55]} Bg4 {[%emt 0:02:42]} 13. Be4 {[%emt 0:02:21]} Bg7 {[%emt 0:00:49]} 14. Re1 {[%emt 0:00:51]} O-O {[%emt 0:01:06]} 15. h3 {[%emt 0:00:27]} Be6 {[%emt 0:17:25]} 16. Ng5 {[%emt 0:03:45]} Bc4 {[%emt 0:03:11]} 17. b3 {[%emt 0:00:31]} h6 {[%emt 0:01:56]} 18. bxc4 {[%emt 0:05:57]} hxg5 {[%emt 0:00:12]} 19. Bxc6 {[%emt 0:02:11]} bxc6 {[%emt 0:00:24]} 20. c5 {[%emt 0:02:30]} Nc4 {[%emt 0:00:29]} 21. Bxg5 {[%emt 0:02:40]} Bxe5 {[%emt 0:03:17]} 22. Rac1 {[%emt 0:01:57]} f6 {[%emt 0:02:29]} 23. Nd1 {[%emt 0:19:37]} Na3 {[%emt 0:07:09]} 24. Bd2 {[%emt 0:12:07]} Nb5 {[%emt 0:01:24]} 25. Nc3 {[%emt 0:02:12]} Nxc3 {[%emt 0:03:06]} 26. Bxc3 {[%emt 0:00:16]} Bxc3 {[%emt 0:00:11]} 27. Rxc3 {[%emt 0:00:12]} Kf7 {[%emt 0:00:09]} 28. Rb3 {[%emt 0:01:15]} Rab8 {[%emt 0:04:02]} 29. Reb1 {[%emt 0:00:46]} Rxb3 {[%emt 0:00:06]} 30. Rxb3 {[%emt 0:00:07]} Ke6 {[%emt 0:00:08]} 31. Rb7 {[%emt 0:02:15]} Kd5 {[%emt 0:00:38]} 32. Rxe7 {[%emt 0:02:37]} a5 {[%emt 0:01:31]} 33. Ra7 {[%emt 0:01:51]} Kxc5 {[%emt 0:00:07]} 34. Rxa5+ {[%emt 0:00:10]} Kb4 {[%emt 0:00:13]} 35. Ra7 {[%emt 0:01:13]} c5 {[%emt 0:00:47]} 36. a4 {[%emt 0:11:04]} c4 {[%emt 0:00:22]} 37. a5 {[%emt 0:01:14]} c3 {[%emt 0:00:19]} 38. a6 {[%emt 0:03:30]} Rc8 {[%emt 0:09:52]} 39. Rb7+ {[%emt 0:00:08]} Ka3 {[%emt 0:03:00]} 40. a7 {[%emt 0:00:39]} c2 {[%emt 0:00:30]} 41. a8=Q+ {[%emt 0:06:28]} Rxa8 {[%emt 0:00:57]} 42. Rc7 {[%emt 0:00:05]} Kb2 {[%emt 0:00:54]} 43. Rb7+ {[%emt 0:00:18]} Ka1 {[%emt 0:00:54]} 44. Rc7 {[%emt 0:00:13]} Ra2 {[%emt 0:00:19]} 45. Kh2 {[%emt 0:01:14]} Kb1 {[%emt 0:00:08]} 46. Kg3 {[%emt 0:00:45]} c1=Q {[%emt 0:02:32]} 47. Rxc1+ {[%emt 0:00:04]} Kxc1 {[%emt 0:00:15]} 48. f4 {[%emt 0:01:20]} Kd2 {[%emt 0:00:35]} 49. Kg4 {[%emt 0:00:36]} Ke3 {[%emt 0:00:36]} 50. g3 {[%emt 0:04:03]} Ke4 {[%emt 0:03:10]} 51. h4 {[%emt 0:00:55]} Ra5 {[%emt 0:01:51]} 52. Kh3 {[%emt 0:04:18]} Kf3 {[%emt 0:00:56]} 53. f5 {[%emt 0:00:36]} Rxf5 {[%emt 0:01:43]} 54. g4 {[%emt 0:00:36]} Ra5 {[%emt 0:00:38]} 55. h5 {[%emt 0:00:30]} gxh5 {[%emt 0:00:39]} 56. Kh4 {[%emt 0:00:20]} Ra4 {[%emt 0:01:54]} 57. Kxh5 {[%emt 0:00:14]} Rxg4 {[%emt 0:00:30]} 58. Kh6 {[%emt 0:00:15]} Kg3 {[%emt 0:00:35]} 59. Kh5 {[%emt 0:00:25]} f5 {[%emt 0:00:10]} 0-1

[Event "17th Memorial Lezcano Montalvo 2025"]
[Site "Gran Canaria"]
[Date "2025.04.17"]
[Round "6.40"]
[White "Hernandez Guerra, Luna Yue"]
[Black "Basualdo De Ornelas, Jorge"]
[Result "0-1"]
[Annotator "NA RC"]
[ECO "C28"]
[WhiteElo "1897"]
[BlackElo "1794"]
[PlyCount "54"]
[EventDate "2025.04.13"]
[EventType "swiss"]
[EventCountry "ESP"]
[SourceTitle "playchess.com"]
[Source "ChessBase"]
[SourceQuality "1"]
[TimeControl "5400+30"]

1. e4 {[%emt 0:00:03]} e5 {[%emt 0:00:03]} 2. Nc3 {[%emt 0:00:03]} Nc6 {[%emt 0:00:17]} 3. Bc4 {[%emt 0:00:07]} Nf6 {[%emt 0:00:09]} 4. d3 {[%emt 0:00:05]} Bc5 {[%emt 0:00:17]} 5. f4 {[%emt 0:00:09]} O-O {[%emt 0:01:55]} 6. f5 {[%emt 0:03:39]} d5 {[%emt 0:04:18]} 7. Nxd5 {[%emt 0:04:20]} Nxe4 {[%emt 0:00:28]} 8. Qh5 {[%emt 0:12:09]} Nf6 {[%emt 0:31:39]} 9. Nxf6+ {[%emt 0:01:59]} Qxf6 {[%emt 0:00:07]} 10. g4 {[%emt 0:00:43]} e4 {[%emt 0:08:14]} 11. Ne2 {[%emt 0:19:00]} exd3 {[%emt 0:00:16]} 12. Bxd3 {[%emt 0:00:31]} Ne5 {[%emt 0:13:03]} 13. Be4 {[%emt 0:05:16]} Qb6 {[%emt 0:21:07]} 14. Kf1 {[%emt 0:23:50]} Bd7 {[%emt 0:03:12]} 15. Qh3 {[%emt 0:06:25]} Bc6 {[%emt 0:02:21]} 16. Qg2 {[%emt 0:01:29]} Bxe4 {[%emt 0:00:51]} 17. Qxe4 {[%emt 0:00:06]} Rfe8 {[%emt 0:01:12]} 18. Bd2 {[%emt 0:01:20]} Rad8 {[%emt 0:03:07]} 19. Bc3 {[%emt 0:01:12]} Nd3 {[%emt 0:03:12]} 20. Qg2 {[%emt 0:03:41]} Nf2 {[%emt 0:00:32]} 21. Re1 {[%emt 0:02:13]} Nxh1 {[%emt 0:00:36]} 22. Qxh1 {[%emt 0:00:06]} Bf2 {[%emt 0:01:12]} 23. Rb1 {[%emt 0:03:20]} Qe3 {[%emt 0:00:32]} 24. Ng3 {[%emt 0:02:53]} Bxg3 {[%emt 0:00:04]} 25. hxg3 {[%emt 0:00:12]} Qe2+ {[%emt 0:00:04]} 26. Kg1 {[%emt 0:00:08]} Rd1+ {[%emt 0:00:43]} 27. Rxd1 {[%emt 0:00:06]} Qxd1+ {[%emt 0:00:04]} 0-1

[Event "17th Memorial Lezcano Montalvo 2025"]
[Site "Gran Canaria"]
[Date "2025.04.17"]
[Round "6.41"]
[White "Gonzalez Perdomo, Sergio"]
[Black "Martinez Correa, Rafael"]
[Result "1-0"]
[Annotator "NA RC"]
[ECO "D00"]
[WhiteElo "1880"]
[BlackElo "1719"]
[PlyCount "69"]
[EventDate "2025.04.13"]
[EventType "swiss"]
[EventCountry "ESP"]
[SourceTitle "playchess.com"]
[Source "ChessBase"]
[SourceQuality "1"]
[TimeControl "5400+30"]

1. d4 {[%emt 0:00:04]} Nf6 {[%emt 0:00:09]} 2. Bf4 {[%emt 0:00:16]} g6 {[%emt 0:01:07]} 3. Nc3 {[%emt 0:00:11]} d5 {[%emt 0:00:20]} 4. Nf3 {[%emt 0:01:35]} Bg7 {[%emt 0:01:10]} 5. Qd2 {[%emt 0:01:11]} c6 {[%emt 0:01:46]} 6. O-O-O {[%emt 0:01:24]} Nbd7 {[%emt 0:02:58]} 7. e3 {[%emt 0:10:20]} Nh5 {[%emt 0:07:59]} 8. Bd3 {[%emt 0:08:28]} Nxf4 {[%emt 0:02:21]} 9. exf4 {[%emt 0:00:05]} Qc7 {[%emt 0:09:10]} 10. Ne5 {[%emt 0:06:48]} Nxe5 {[%emt 0:01:02]} 11. fxe5 {[%emt 0:00:33]} Bd7 {[%emt 0:00:52]} 12. f4 {[%emt 0:00:55]} O-O-O {[%emt 0:00:46]} 13. h3 {[%emt 0:01:08]} h5 {[%emt 0:01:19]} 14. Na4 {[%emt 0:03:56]} h4 {[%emt 0:04:49]} 15. Nc5 {[%emt 0:02:56]} e6 {[%emt 0:01:32]} 16. b4 {[%emt 0:15:26]} Bf8 {[%emt 0:03:29]} 17. Qc3 {[%emt 0:01:34]} Re8 {[%emt 0:09:25]} 18. a4 {[%emt 0:08:49]} Bxc5 {[%emt 0:01:51]} 19. bxc5 {[%emt 0:01:11]} Kd8 {[%emt 0:02:32]} 20. Kd2 {[%emt 0:00:40]} Bc8 {[%emt 0:00:22]} 21. Rb1 {[%emt 0:00:25]} Kd7 {[%emt 0:01:03]} 22. a5 {[%emt 0:02:24]} a6 {[%emt 0:01:05]} 23. Rb6 {[%emt 0:00:10]} Re7 {[%emt 0:00:53]} 24. Be2 {[%emt 0:04:06]} Ke8 {[%emt 0:00:48]} 25. g3 {[%emt 0:01:20]} hxg3 {[%emt 0:01:02]} 26. Qxg3 {[%emt 0:00:09]} Rd7 {[%emt 0:00:08]} 27. h4 {[%emt 0:02:51]} Qd8 {[%emt 0:01:01]} 28. h5 {[%emt 0:00:23]} gxh5 {[%emt 0:00:37]} 29. Qg7 {[%emt 0:02:24]} Rf8 {[%emt 0:00:06]} 30. f5 {[%emt 0:09:40]} exf5 {[%emt 0:01:17]} 31. e6 {[%emt 0:03:34]} Qc7 {[%emt 0:02:09]} 32. exd7+ {[%emt 0:00:17]} Kxd7 {[%emt 0:00:50]} 33. Qxf8 {[%emt 0:03:55]} Qf4+ {[%emt 0:00:08]} 34. Kc3 {[%emt 0:00:46]} Qe4 {[%emt 0:00:57]} 35. Qd6+ {[%emt 0:00:00]} 1-0

[Event "17th Memorial Lezcano Montalvo 2025"]
[Site "Gran Canaria"]
[Date "2025.04.17"]
[Round "6.43"]
[White "Ludishev, Artem"]
[Black "Fernandez De La Hoz A., Carlos"]
[Result "1-0"]
[Annotator "NA RC"]
[ECO "B07"]
[WhiteElo "1874"]
[BlackElo "1687"]
[PlyCount "71"]
[EventDate "2025.04.13"]
[EventType "swiss"]
[EventCountry "ESP"]
[SourceTitle "playchess.com"]
[Source "ChessBase"]
[SourceQuality "1"]
[TimeControl "5400+30"]

1. e4 {[%emt 0:00:30]} d6 {[%emt 0:01:24]} 2. d4 {[%emt 0:00:00]} Nf6 {[%emt 0:01:20]} 3. Nc3 {[%emt 0:00:00]} c6 {[%emt 0:00:39]} 4. f3 {[%emt 0:00:39]} g6 {[%emt 0:01:16]} 5. Be3 {[%emt 0:00:14]} Bg7 {[%emt 0:01:25]} 6. Qd2 {[%emt 0:00:10]} h6 {[%emt 0:03:11]} 7. g4 {[%emt 0:02:18]} Nbd7 {[%emt 0:09:37]} 8. Nge2 {[%emt 0:01:58]} b5 {[%emt 0:04:03]} 9. Ng3 {[%emt 0:00:15]} b4 {[%emt 0:04:49]} 10. Nce2 {[%emt 0:00:07]} Nb6 {[%emt 0:01:06]} 11. Nc1 {[%emt 0:03:27]} a5 {[%emt 0:02:19]} 12. a3 {[%emt 0:00:15]} bxa3 {[%emt 0:08:56]} 13. Rxa3 {[%emt 0:00:49]} a4 {[%emt 0:00:36]} 14. c4 {[%emt 0:07:56]} h5 {[%emt 0:03:34]} 15. g5 {[%emt 0:00:16]} Ng8 {[%emt 0:03:07]} 16. h4 {[%emt 0:01:22]} Bb7 {[%emt 0:09:27]} 17. Bd3 {[%emt 0:02:05]} Ba6 {[%emt 0:05:13]} 18. Qc2 {[%emt 0:02:11]} Qc7 {[%emt 0:07:39]} 19. Nce2 {[%emt 0:04:44]} c5 {[%emt 0:02:22]} 20. d5 {[%emt 0:01:52]} Rb8 {[%emt 0:09:44]} 21. Ra2 {[%emt 0:00:25]} Kd7 {[%emt 0:01:34]} 22. Rxa4 {[%emt 0:07:42]} Ra8 {[%emt 0:04:22]} 23. Ra2 {[%emt 0:00:25]} e6 {[%emt 0:02:08]} 24. O-O {[%emt 0:00:56]} exd5 {[%emt 0:00:31]} 25. exd5 {[%emt 0:00:56]} Ne7 {[%emt 0:02:21]} 26. Rfa1 {[%emt 0:01:52]} Bb7 {[%emt 0:03:42]} 27. f4 {[%emt 0:07:35]} Rag8 {[%emt 0:01:04]} 28. f5 {[%emt 0:00:53]} f6 {[%emt 0:00:49]} 29. fxg6 {[%emt 0:00:17]} fxg5 {[%emt 0:00:24]} 30. Bf5+ {[%emt 0:01:16]} Kd8 {[%emt 0:00:16]} 31. Bxg5 {[%emt 0:00:14]} Rf8 {[%emt 0:00:24]} 32. Nf4 {[%emt 0:00:17]} Ke8 {[%emt 0:02:02]} 33. Ne6 {[%emt 0:00:55]} Bd4+ {[%emt 0:00:17]} 34. Kh2 {[%emt 0:00:12]} Qb8 {[%emt 0:00:40]} 35. Re1 {[%emt 0:02:36]} Be5 {[%emt 0:00:48]} 36. Rxe5 {[%emt 0:50:51]} 1-0

[Event "17th Memorial Lezcano Montalvo 2025"]
[Site "Gran Canaria"]
[Date "2025.04.17"]
[Round "6.45"]
[White "Zhang, Ying Jun Xiong"]
[Black "Juan Miguel, Javier"]
[Result "0-1"]
[Annotator "NA RC"]
[ECO "E12"]
[WhiteElo "2015"]
[BlackElo "1803"]
[PlyCount "78"]
[EventDate "2025.04.13"]
[EventType "swiss"]
[EventCountry "ESP"]
[SourceTitle "playchess.com"]
[Source "ChessBase"]
[SourceQuality "1"]
[TimeControl "5400+30"]

1. c4 {[%emt 0:00:02]} e6 {[%emt 0:00:51]} 2. Nc3 {[%emt 0:00:13]} d5 {[%emt 0:02:12]} 3. d4 {[%emt 0:00:18]} Nf6 {[%emt 0:00:16]} 4. Bg5 {[%emt 0:00:11]} Be7 {[%emt 0:01:30]} 5. Nf3 {[%emt 0:00:29]} O-O {[%emt 0:02:50]} 6. e3 {[%emt 0:01:50]} b6 {[%emt 0:01:29]} 7. Bd3 {[%emt 0:00:29]} Bb7 {[%emt 0:01:05]} 8. O-O {[%emt 0:00:31]} Nbd7 {[%emt 0:04:57]} 9. h3 {[%emt 0:00:31]} c5 {[%emt 0:01:46]} 10. cxd5 {[%emt 0:01:01]} exd5 {[%emt 0:01:25]} 11. Re1 {[%emt 0:02:30]} Ne4 {[%emt 0:01:06]} 12. Bxe7 {[%emt 0:00:09]} Qxe7 {[%emt 1:17:03]} 13. Nd2 {[%emt 0:05:06]} f5 {[%emt 0:00:00]} 14. f3 {[%emt 0:01:51]} Nxd2 {[%emt 0:00:00]} 15. Qxd2 {[%emt 0:00:06]} cxd4 {[%emt 0:00:00]} 16. exd4 {[%emt 0:00:38]} Qb4 {[%emt 0:00:00]} 17. Bc2 {[%emt 0:01:49]} g6 {[%emt 0:00:00]} 18. Bb3 {[%emt 0:00:22]} Nf6 {[%emt 0:00:00]} 19. Qh6 {[%emt 0:01:04]} Qxd4+ {[%emt 0:00:00]} 20. Kh1 {[%emt 0:00:15]} Rae8 {[%emt 0:00:00]} 21. Rad1 {[%emt 0:02:41]} Qc5 {[%emt 0:00:00]} 22. Qg5 {[%emt 0:01:31]} Kg7 {[%emt 0:00:00]} 23. Rxe8 {[%emt 0:00:27]} Rxe8 {[%emt 0:00:00]} 24. Qh4 {[%emt 0:03:34]} b5 {[%emt 0:00:00]} 25. Qf4 {[%emt 0:02:49]} Re7 {[%emt 0:00:00]} 26. Qd4 {[%emt 0:01:51]} Re1+ {[%emt 0:00:00]} 27. Kh2 {[%emt 0:01:21]} Qd6+ {[%emt 0:00:00]} 28. f4 {[%emt 0:00:28]} Rxd1 {[%emt 0:00:00]} 29. Bxd1 {[%emt 0:00:12]} a6 {[%emt 0:00:00]} 30. Bf3 {[%emt 0:03:00]} Kf7 {[%emt 0:00:00]} 31. g3 {[%emt 0:01:59]} Qc6 {[%emt 0:00:00]} 32. Qe5 {[%emt 0:02:10]} Ne4 {[%emt 0:00:00]} 33. a3 {[%emt 1:05:32]} Qb6 {[%emt 0:00:00]} 34. Nxd5 {[%emt 0:00:00]} Qf2+ {[%emt 0:00:00]} 35. Bg2 {[%emt 0:00:00]} Qxg3+ {[%emt 0:00:00]} 36. Kg1 {[%emt 0:00:00]} Bxd5 {[%emt 0:00:00]} 37. Qxd5+ {[%emt 0:00:00]} Kg7 {[%emt 0:00:00]} 38. Qe5+ {[%emt 0:00:00]} Kh6 {[%emt 0:00:00]} 39. Qc5 {[%emt 0:00:00]} Nxc5 {[%emt 0:00:00]} 0-1

[Event "17th Memorial Lezcano Montalvo 2025"]
[Site "Gran Canaria"]
[Date "2025.04.17"]
[Round "6.46"]
[White "Marrero Rodriguez, Jorge"]
[Black "Fernandez Hernandez, Javier"]
[Result "1-0"]
[Annotator "RC"]
[ECO "D51"]
[WhiteElo "2251"]
[BlackElo "1689"]
[PlyCount "39"]
[EventDate "2025.04.13"]
[EventType "swiss"]
[EventCountry "ESP"]
[SourceTitle "playchess.com"]
[Source "ChessBase"]
[SourceQuality "1"]
[TimeControl "5400+30"]

1. d4 {[%emt 0:00:02]} d5 {[%emt 0:00:07]} 2. c4 {[%emt 0:00:04]} e6 {[%emt 0:00:05]} 3. Nc3 {[%emt 0:00:04]} Nf6 {[%emt 0:00:03]} 4. Bg5 {[%emt 0:00:05]} c6 {[%emt 0:00:15]} 5. e3 {[%emt 0:02:42]} Nbd7 {[%emt 0:00:07]} 6. Bd3 {[%emt 0:04:19]} dxc4 {[%emt 0:00:29]} 7. Bxc4 {[%emt 0:00:24]} b5 {[%emt 0:00:04]} 8. Bb3 {[%emt 0:01:26]} a6 {[%emt 0:02:52]} 9. f4 {[%emt 0:03:16]} Qb6 {[%emt 0:00:27]} 10. Nf3 {[%emt 0:00:27]} Bb7 {[%emt 0:00:15]} 11. O-O {[%emt 0:05:08]} c5 {[%emt 0:00:07]} 12. Kh1 {[%emt 0:05:38]} cxd4 {[%emt 0:00:45]} 13. exd4 {[%emt 0:00:11]} Bd6 {[%emt 0:00:23]} 14. d5 {[%emt 0:01:30]} O-O-O {[%emt 0:05:52]} 15. dxe6 {[%emt 0:00:38]} fxe6 {[%emt 0:00:07]} 16. Bxe6 {[%emt 0:00:08]} Kb8 {[%emt 0:00:04]} 17. Nd5 {[%emt 0:01:34]} Nxd5 {[%emt 0:01:00]} 18. Bxd8 {[%emt 0:00:42]} Ne3 {[%emt 0:00:08]} 19. Bxb6 {[%emt 0:00:12]} Nxd1 {[%emt 0:00:05]} 20. Bxd7 {[%emt 0:00:24]} 1-0

[Event "17th Memorial Lezcano Montalvo 2025"]
[Site "Gran Canaria"]
[Date "2025.04.17"]
[Round "6.47"]
[White "Bangiev, Katharina"]
[Black "Valido Ramos, Adrian"]
[Result "1/2-1/2"]
[Annotator "NA RC"]
[ECO "B15"]
[WhiteElo "1848"]
[BlackElo "1667"]
[PlyCount "132"]
[EventDate "2025.04.13"]
[EventType "swiss"]
[EventCountry "ESP"]
[SourceTitle "playchess.com"]
[Source "ChessBase"]
[SourceQuality "1"]
[TimeControl "5400+30"]

1. e4 {[%emt 0:00:34]} c6 {[%emt 0:00:03]} 2. d4 {[%emt 0:00:09]} d5 {[%emt 0:00:03]} 3. Nc3 {[%emt 0:00:08]} dxe4 {[%emt 0:00:04]} 4. Nxe4 {[%emt 0:00:03]} Nf6 {[%emt 0:00:13]} 5. Nxf6+ {[%emt 0:00:55]} exf6 {[%emt 0:00:06]} 6. c3 {[%emt 0:00:55]} Bd6 {[%emt 0:00:04]} 7. Bd3 {[%emt 0:00:07]} O-O {[%emt 0:00:05]} 8. Qc2 {[%emt 0:00:09]} Re8+ {[%emt 0:00:03]} 9. Ne2 {[%emt 0:00:07]} h5 {[%emt 0:00:03]} 10. O-O {[%emt 0:00:19]} h4 {[%emt 0:00:03]} 11. h3 {[%emt 0:00:20]} Nd7 {[%emt 0:00:04]} 12. Be3 {[%emt 0:03:47]} Nf8 {[%emt 0:00:06]} 13. c4 {[%emt 0:03:08]} Bc7 {[%emt 0:00:22]} 14. b4 {[%emt 0:01:42]} Qd6 {[%emt 0:05:02]} 15. Bf4 {[%emt 0:03:19]} Rxe2 {[%emt 0:01:09]} 16. Bxd6 {[%emt 0:00:55]} Rxc2 {[%emt 0:00:04]} 17. Bxc7 {[%emt 0:00:49]} Rc3 {[%emt 0:01:22]} 18. Rad1 {[%emt 0:12:09]} Ne6 {[%emt 0:00:24]} 19. Bd6 {[%emt 0:05:17]} Nxd4 {[%emt 0:19:41]} 20. Bh7+ {[%emt 0:05:45]} Kxh7 {[%emt 0:00:10]} 21. Rxd4 {[%emt 0:00:06]} g5 {[%emt 0:05:01]} 22. Be7 {[%emt 0:10:27]} Kg6 {[%emt 0:00:17]} 23. f4 {[%emt 0:02:08]} Re3 {[%emt 0:08:10]} 24. Bd8 {[%emt 0:03:51]} Bf5 {[%emt 0:02:47]} 25. c5 {[%emt 0:17:09]} Re4 {[%emt 0:03:44]} 26. Rd6 {[%emt 0:02:43]} Re6 {[%emt 0:00:23]} 27. Rd2 {[%emt 0:06:18]} Rb8 {[%emt 0:02:20]} 28. a4 {[%emt 0:07:02]} b6 {[%emt 0:05:22]} 29. cxb6 {[%emt 0:00:25]} axb6 {[%emt 0:00:04]} 30. a5 {[%emt 0:00:28]} bxa5 {[%emt 0:00:43]} 31. bxa5 {[%emt 0:00:03]} c5 {[%emt 0:00:25]} 32. fxg5 {[%emt 0:04:09]} fxg5 {[%emt 0:01:41]} 33. Rd5 {[%emt 0:03:14]} Be4 {[%emt 0:04:37]} 34. Rxg5+ {[%emt 0:00:28]} Kh6 {[%emt 0:00:08]} 35. Bc7 {[%emt 0:03:39]} Kxg5 {[%emt 0:07:17]} 36. Bxb8 {[%emt 0:00:02]} f5 {[%emt 0:03:18]} 37. Bf4+ {[%emt 0:01:31]} Kg6 {[%emt 0:00:21]} 38. Ra1 {[%emt 0:00:53]} Ba8 {[%emt 0:03:34]} 39. Kf2 {[%emt 0:01:10]} Re4 {[%emt 0:01:14]} 40. Be3 {[%emt 0:00:43]} Rc4 {[%emt 0:00:25]} 41. Rc1 {[%emt 0:01:12]} Rxc1 {[%emt 0:00:23]} 42. Bxc1 {[%emt 0:00:02]} Bb7 {[%emt 0:02:28]} 43. g3 {[%emt 0:00:32]} Kh5 {[%emt 0:02:27]} 44. Bf4 {[%emt 0:01:16]} c4 {[%emt 0:01:37]} 45. Be5 {[%emt 0:01:00]} Kg5 {[%emt 0:00:55]} 46. Bf4+ {[%emt 0:01:19]} Kh5 {[%emt 0:00:07]} 47. Bd2 {[%emt 0:00:19]} Bc8 {[%emt 0:01:27]} 48. Kf3 {[%emt 0:00:59]} hxg3 {[%emt 0:00:06]} 49. Kxg3 {[%emt 0:00:10]} f4+ {[%emt 0:00:53]} 50. Bxf4 {[%emt 0:00:25]} Bb7 {[%emt 0:00:17]} 51. Bd2 {[%emt 0:00:12]} Bc8 {[%emt 0:00:12]} 52. Be1 {[%emt 0:00:28]} Bb7 {[%emt 0:00:12]} 53. h4 {[%emt 0:00:09]} Bc8 {[%emt 0:00:53]} 54. Kf3 {[%emt 0:00:14]} c3 {[%emt 0:01:04]} 55. Ke3 {[%emt 0:00:10]} c2 {[%emt 0:00:20]} 56. Kd2 {[%emt 0:00:04]} Bf5 {[%emt 0:01:31]} 57. a6 {[%emt 0:00:35]} Be4 {[%emt 0:00:54]} 58. a7 {[%emt 0:00:06]} Kh6 {[%emt 0:00:13]} 59. Kc1 {[%emt 0:00:37]} Kh5 {[%emt 0:00:07]} 60. Kb2 {[%emt 0:00:22]} Kg4 {[%emt 0:01:02]} 61. Bf2 {[%emt 0:01:01]} Kh5 {[%emt 0:00:19]} 62. Bg3 {[%emt 0:01:13]} Kg4 {[%emt 0:00:08]} 63. Kc1 {[%emt 0:00:38]} Kh5 {[%emt 0:00:32]} 64. Kd2 {[%emt 0:01:38]} Kg4 {[%emt 0:00:06]} 65. Kc1 {[%emt 0:00:37]} Kh5 {[%emt 0:00:04]} 66. Bf2 {[%emt 0:00:31]} Kg4 {[%emt 0:00:08]} 1/2-1/2

[Event "17th Memorial Lezcano Montalvo 2025"]
[Site "Gran Canaria"]
[Date "2025.04.17"]
[Round "6.48"]
[White "Roca Marrero, Fernando"]
[Black "Schmitz, Manuela"]
[Result "1/2-1/2"]
[Annotator "NA RC"]
[ECO "D02"]
[WhiteElo "1617"]
[BlackElo "1815"]
[PlyCount "128"]
[EventDate "2025.04.13"]
[EventType "swiss"]
[EventCountry "ESP"]
[SourceTitle "playchess.com"]
[Source "ChessBase"]
[SourceQuality "1"]
[TimeControl "5400+30"]

1. d4 {[%emt 0:00:02]} d5 {[%emt 0:00:07]} 2. Bf4 {[%emt 0:00:12]} Nf6 {[%emt 0:00:18]} 3. Nd2 {[%emt 0:00:45]} e6 {[%emt 0:00:36]} 4. e3 {[%emt 0:00:07]} Be7 {[%emt 0:00:39]} 5. h3 {[%emt 0:00:12]} O-O {[%emt 0:00:45]} 6. Ngf3 {[%emt 0:00:02]} b6 {[%emt 0:00:35]} 7. Bd3 {[%emt 0:00:32]} Bb7 {[%emt 0:00:56]} 8. O-O {[%emt 0:01:33]} Nbd7 {[%emt 0:01:00]} 9. Qe2 {[%emt 0:01:02]} c5 {[%emt 0:01:07]} 10. c3 {[%emt 0:00:06]} Nh5 {[%emt 0:11:02]} 11. Bh2 {[%emt 0:11:59]} f5 {[%emt 0:10:12]} 12. Ne5 {[%emt 0:00:40]} Nxe5 {[%emt 0:02:07]} 13. dxe5 {[%emt 0:01:27]} g6 {[%emt 0:01:02]} 14. f4 {[%emt 0:05:32]} c4 {[%emt 0:05:42]} 15. Bc2 {[%emt 0:08:08]} b5 {[%emt 0:02:48]} 16. Nf3 {[%emt 0:02:28]} Bc5 {[%emt 0:01:13]} 17. Nd4 {[%emt 0:01:30]} Bxd4 {[%emt 0:02:09]} 18. exd4 {[%emt 0:01:22]} Qh4 {[%emt 0:02:12]} 19. Qe3 {[%emt 0:06:46]} a6 {[%emt 0:05:24]} 20. Rf3 {[%emt 0:02:42]} Kh8 {[%emt 0:03:40]} 21. g3 {[%emt 0:02:25]} Qxh3 {[%emt 0:03:16]} 22. Bd1 {[%emt 0:00:14]} Ng7 {[%emt 0:00:58]} 23. g4 {[%emt 0:00:15]} Qxg4+ {[%emt 0:00:53]} 24. Rg3 {[%emt 0:00:13]} Qh4 {[%emt 0:00:40]} 25. Rh3 {[%emt 0:02:15]} Qe7 {[%emt 0:00:00]} 26. Kf2 {[%emt 0:06:03]} b4 {[%emt 0:02:14]} 27. Be2 {[%emt 0:02:12]} Rf7 {[%emt 0:01:22]} 28. Rg1 {[%emt 0:00:17]} Kg8 {[%emt 0:00:42]} 29. Bg3 {[%emt 0:02:09]} Ne8 {[%emt 0:00:57]} 30. Bh4 {[%emt 0:00:33]} Qd7 {[%emt 0:00:40]} 31. Qg3 {[%emt 0:06:36]} bxc3 {[%emt 0:00:54]} 32. bxc3 {[%emt 0:00:39]} Bc6 {[%emt 0:03:19]} 33. Rgh1 {[%emt 0:00:29]} Ra7 {[%emt 0:01:52]} 34. Bg5 {[%emt 0:04:33]} Ba4 {[%emt 0:03:47]} 35. Rh6 {[%emt 0:00:35]} Bc2 {[%emt 0:04:00]} 36. Qh4 {[%emt 0:00:14]} Be4 {[%emt 0:01:40]} 37. Rxg6+ {[%emt 0:00:14]} Kh8 {[%emt 0:00:57]} 38. Rg1 {[%emt 0:07:43]} Rg7 {[%emt 0:01:43]} 39. Rxg7 {[%emt 0:05:43]} Nxg7 {[%emt 0:01:01]} 40. Bf6 {[%emt 0:00:15]} Qe8 {[%emt 0:00:17]} 41. Rxg7 {[%emt 0:02:16]} Rxg7 {[%emt 0:00:07]} 42. Bh5 {[%emt 0:03:46]} Qf8 {[%emt 0:00:56]} 43. Bg6 {[%emt 0:00:14]} Kg8 {[%emt 0:00:17]} 44. Bxg7 {[%emt 0:05:27]} Qxg7 {[%emt 0:00:49]} 45. Qd8+ {[%emt 0:00:11]} Qf8 {[%emt 0:00:00]} 46. Bxh7+ {[%emt 0:01:06]} Kg7 {[%emt 0:00:00]} 47. Qxf8+ {[%emt 0:02:26]} Kxf8 {[%emt 0:00:00]} 48. Bg6 {[%emt 0:00:05]} Bb1 {[%emt 0:02:49]} 49. a3 {[%emt 0:01:36]} Bc2 {[%emt 0:00:17]} 50. Bh5 {[%emt 0:00:22]} a5 {[%emt 0:00:52]} 51. Kg3 {[%emt 0:00:44]} Ke7 {[%emt 0:01:32]} 52. Kh4 {[%emt 0:00:03]} Bb3 {[%emt 0:00:18]} 53. Kg5 {[%emt 0:00:15]} Bc2 {[%emt 0:00:46]} 54. Kh4 {[%emt 0:00:43]} Bb3 {[%emt 0:00:00]} 55. Kg3 {[%emt 0:00:07]} Bc2 {[%emt 0:00:23]} 56. Kf2 {[%emt 0:00:04]} Bb3 {[%emt 0:00:00]} 57. Ke1 {[%emt 0:00:20]} Kf8 {[%emt 0:01:56]} 58. Bd1 {[%emt 0:01:51]} Bxd1 {[%emt 0:01:09]} 59. Kxd1 {[%emt 0:00:01]} Kg7 {[%emt 0:00:12]} 60. Ke2 {[%emt 0:01:12]} Kh6 {[%emt 0:00:06]} 61. Kf3 {[%emt 0:00:41]} Kh5 {[%emt 0:00:36]} 62. Kg3 {[%emt 0:00:14]} Kg6 {[%emt 0:01:04]} 63. a4 {[%emt 0:00:35]} Kh5 {[%emt 0:00:11]} 64. Kh3 {[%emt 0:00:02]} Kg6 {[%emt 0:00:09]} 1/2-1/2